bitfinex-derivatives/quotes_SOLF0:USTF0_20251026
["timestamp","ask_amount","ask_price","bid_price","bid_amount"]
[1761517793598,2.77,198.88,198.82,2.68]
[1761517793800,2.77,198.87,198.79,4.527]
[1761517794002,2.77,198.87,198.79,7.207]
[1761517794698,2.77,198.87,198.8,2.68]
[1761517797902,7.04325775,198.87,198.8,2.68]
[1761517798097,4.27325775,198.86,198.8,2.68]
[1761517799410,2.77,198.87,198.8,2.68]
[1761517800709,2.77,198.86,198.8,2.68]
[1761517801110,6.1869877,198.94,198.76,4.64575327]
[1761517801111,4.27325775,198.88,198.81,2.68]
[1761517801308,4.27325775,198.94,198.81,2.68]
[1761517801511,2.77,198.93,198.82,2.68]
[1761517801703,4.27325775,198.93,198.83,2.68]
[1761517802014,2.77,198.96,198.83,2.68]
[1761517802225,2.77,198.94,198.83,2.68]
[1761517802407,4.27325775,198.96,198.83,2.68]
[1761517802610,6.1869877,199.01,198.82,4.64575327]
[1761517802611,4.27325775,198.97,198.9,2.68]
[1761517802813,4.27325775,198.98,198.9,2.68]
[1761517803008,4.27325775,198.98,198.94,2.68]
[1761517803313,0.87507544,199.04,198.86,2.63]
[1761517803314,2.77,198.97,198.86,2.63]
[1761517803514,2.77,198.97,198.89,7.1548]
[1761517803907,2.84,199.01,198.9,2.63]
[1761517804103,3.46371087,199.04,198.92,2.63]
[1761517804307,2.84,199.03,198.92,2.63]
[1761517804709,2.84,199.03,198.92,4.524]
[1761517804910,2.84,199.03,198.93,2.63]
[1761517805409,2.84,199.03,198.95,2.63]
[1761517805615,2.84,199.07,198.95,2.63]
[1761517806008,2.84,199.05,198.91,2.63]
[1761517806619,2.84,199.05,198.96,2.63]
[1761517806913,2.84,199.09,198.96,2.63]
[1761517807317,2.84,199.09,198.98,2.63]
[1761517808110,2.84,199.12,199.0,2.63]
[1761517808320,2.84,199.16,199.0,2.63]
[1761517808620,2.84,199.16,199.06,7.1509]
[1761517808817,2.84,199.16,199.07,2.87]
[1761517809323,2.69,199.22,199.11,2.87]
[1761517810017,2.69,199.22,199.05,3.46371087]
[1761517810018,2.69,199.21,199.07,2.87]
[1761517810316,6.1869877,199.38,199.1,2.87]
[1761517810622,2.69,199.31,199.14,2.87]
[1761517811114,2.69,199.29,199.14,2.87]
[1761517811508,2.69,199.27,199.14,2.87]
[1761517812111,2.69,199.27,199.1,2.87]
[1761517812311,3.46371087,199.2,199.03,2.87]
[1761517812513,2.69,199.19,199.03,2.87]
[1761517812716,2.69,199.15,199.03,2.87]
[1761517813912,3.46371087,199.12,198.98,2.87]
[1761517814217,2.69,199.11,198.98,2.87]
[1761517815018,2.69,199.07,198.98,2.87]
[1761517815212,6.15371087,199.11,198.98,2.87]
[1761517815418,2.69,199.11,198.98,2.87]
[1761517815723,2.69,199.09,198.96,2.87]
[1761517817017,2.69,199.05,198.86,2.87]
[1761517817216,2.69,199.05,198.9,2.87]
[1761517817818,2.69,199.05,198.91,2.87]
[1761517819019,2.69,199.01,198.87,2.87]
[1761517819619,2.69,199.01,198.88,2.87]
[1761517821924,2.69,199.01,198.84,4.526]
[1761517821925,2.69,198.97,198.84,7.396]
[1761517822130,2.69,198.97,198.84,2.87]
[1761517822527,2.69,198.93,198.76,3.46371087]
[1761517822757,2.69,198.93,198.8,2.87]
[1761517823730,2.69,198.93,198.82,2.87]
[1761517823929,2.69,198.93,198.77,2.87]
[1761517824129,2.69,198.91,198.77,2.87]
[1761517825525,2.69,198.91,198.79,2.87]
[1761517826835,2.69,198.91,198.79,7.397]
[1761517827034,2.69,198.91,198.8,2.87]
[1761517827438,2.69,198.91,198.82,2.87]
[1761517828239,2.69,198.95,198.84,2.87]
[1761517829125,4.4,199.01,198.74,75.01955565]
[1761517829126,2.69,198.99,198.85,3.46371087]
[1761517829332,2.69,198.99,198.86,2.87]
[1761517829935,2.69,198.99,198.86,7.3954]
[1761517830531,2.69,198.99,198.87,2.87]
[1761517831235,2.69,198.99,198.89,2.87]
[1761517831636,2.69,198.99,198.9,4.5245]
[1761517831840,2.69,198.99,198.91,2.87]
[1761517832639,3.46371087,199.06,198.91,2.87]
[1761517832640,2.69,199.05,198.92,4.5241]
[1761517832844,2.69,199.05,198.93,2.87]
[1761517833149,2.69,199.03,198.9,4.5245]
[1761517833337,2.69,199.03,198.86,3.46371087]
[1761517833338,2.69,199.03,198.91,2.87]
[1761517833740,2.69,199.03,198.89,4.5247]
[1761517834051,2.69,199.01,198.89,4.5247]
[1761517834348,2.69,199.01,198.9,2.87]
[1761517834543,2.69,199.01,198.92,7.3941]
[1761517835342,2.69,199.01,198.89,7.3947]
[1761517838547,2.69,199.01,198.86,4.5254]
[1761517838753,2.69,199.01,198.87,2.59]
[1761517839449,2.69,199.01,198.89,2.59]
[1761517839852,260.11,199.14,198.92,2.59]
[1761517839853,2.84,199.06,198.92,2.59]
[1761517840252,2.84,199.06,198.96,7.1132]
[1761517840652,2.84,199.06,198.91,2.59]
[1761517841050,2.84,199.06,198.93,4.5238]
[1761517841251,3.46371087,199.05,198.94,2.59]
[1761517841456,2.84,199.04,198.88,2.59]
[1761517841757,2.84,199.0,198.9,4.5245]
[1761517841955,2.84,199.0,198.88,2.59]
[1761517843854,2.84,199.0,198.84,4.5258]
[1761517844254,2.84,199.0,198.84,7.1158]
[1761517844455,2.84,199.0,198.84,2.59]
[1761517845157,2.84,199.0,198.85,7.1156]
[1761517846457,2.84,199.0,198.87,4.5253]
[1761517846662,2.84,198.98,198.87,4.5253]
[1761517846963,2.84,198.97,198.87,4.5253]
[1761517847460,2.84,198.97,198.88,2.59]
[1761517847657,2.84,198.97,198.89,7.1148]
[1761517847858,5.85241621,199.04,198.89,7.1148]
[1761517847859,2.84,199.03,198.89,2.59]
[1761517848262,2.84,199.03,198.96,2.59]
[1761517850466,2.84,199.03,198.85,2.59]
[1761517851062,2.84,199.03,198.91,2.59]
[1761517851960,2.84,199.02,198.91,2.59]
[1761517852363,2.84,199.02,198.8,2.59]
[1761517852962,2.84,199.02,198.91,4.5243]
[1761517853263,36.24,199.02,198.91,4.5243]
[1761517853469,2.84,199.01,198.91,4.5243]
[1761517853968,2.84,199.01,198.93,7.1139]
[1761517854168,2.84,199.01,198.93,2.59]
[1761517854764,2.84,199.01,198.95,4.5233]
[1761517856576,2.84,199.07,198.97,2.59]
[1761517857264,2.84,199.07,198.98,4.5226]
[1761517857675,2.84,199.07,198.98,7.1126]
[1761517858174,2.84,199.07,198.99,4.5223]
[1761517858472,2.84,199.07,198.93,2.59]
[1761517859473,2.84,199.06,198.97,4.523]
[1761517860066,2.84,199.06,198.97,2.59]
[1761517860569,2.84,199.1,199.01,2.59]
[1761517861169,2.84,199.1,199.02,2.59]
[1761517863070,2.84,199.1,199.03,4.5216]
[1761517866777,2.75,199.14,199.06,2.68]
[1761517867075,62.8,199.13,199.02,2.68]
[1761517867283,2.75,199.12,199.02,2.68]
[1761517867582,2.75,199.12,198.98,2.68]
[1761517868170,2.75,199.12,199.01,4.5219]
[1761517869375,2.75,199.12,199.02,2.84]
[1761517869775,65.55,199.12,199.02,2.84]
[1761517869976,2.69,199.11,199.02,2.84]
[1761517871078,2.69,199.11,199.02,7.3618]
[1761517872483,2.69,199.11,199.04,4.5214]
[1761517872979,4.63123055,199.14,199.07,4.5207]
[1761517873182,65.49,199.16,199.06,2.84]
[1761517873681,2.69,199.16,199.06,2.84]
[1761517873881,62.8,199.15,199.06,2.84]
[1761517874081,62.8,199.15,199.09,4.5203]
[1761517874482,65.49,199.15,199.06,7.3608]
[1761517874783,65.47,199.14,199.06,7.3608]
[1761517876489,2.69,199.14,199.06,7.3608]
[1761517876788,2.69,199.12,199.01,2.84]
[1761517877385,2.69,199.12,199.04,4.5212]
[1761517878091,2.69,199.12,199.06,4.5209]
[1761517878293,38.11,199.12,199.06,4.5209]
[1761517879794,2.69,199.11,199.03,4.5214]
[1761517880096,35.42,199.12,199.04,2.84]
[1761517880499,35.42,199.12,199.04,7.3613]
[1761517880789,38.11,199.12,199.04,7.3613]
[1761517881494,38.11,199.12,199.06,4.5209]
[1761517883094,2.69,199.11,199.06,4.5209]
[1761517884394,2.69,199.11,199.06,7.3609]
[1761517885189,2.69,199.11,199.07,2.84]
[1761517885395,54.19,199.15,199.07,7.3606]
[1761517885597,2.69,199.14,199.07,7.3606]
[1761517887501,2.69,199.14,199.07,4.5206]
[1761517887694,2.69,199.07,198.91,4.57975565]
[1761517887998,2.69,199.05,198.87,2.84]
[1761517888297,2.69,199.05,198.83,5.85241621]
[1761517888298,2.69,199.04,198.88,2.84]
[1761517888486,51.64,199.03,198.88,2.84]
[1761517888685,2.69,199.02,198.88,2.84]
[1761517889796,4.63123055,199.04,198.88,7.365]
[1761517889998,2.69,199.0,198.88,7.365]
[1761517890400,2.69,199.0,198.88,2.84]
[1761517890924,2.69,198.99,198.88,2.84]
[1761517892191,2.69,198.99,198.88,7.365]
[1761517893303,65.45,198.99,198.91,2.84]
[1761517893604,2.69,198.99,198.91,2.84]
[1761517896000,2.69,198.99,198.87,2.84]
[1761517896198,2.69,198.99,198.88,4.525]
[1761517896396,2.69,198.99,198.89,2.84]
[1761517896999,2.69,198.99,198.85,4.5256]
[1761517897000,2.69,198.99,198.85,2.84]
[1761517897607,62.76,198.98,198.85,2.84]
[1761517898001,4.5578085,198.97,198.85,2.84]
[1761517898306,4.5578085,198.97,198.89,2.84]
[1761517898510,7.2478085,198.98,198.89,2.84]
[1761517901096,4.5578085,198.98,198.89,2.84]
[1761517901303,2.7,198.97,198.89,2.84]
[1761517904318,2.7,198.97,198.86,4.5255]
[1761517904509,2.7,198.95,198.85,2.84]
[1761517904809,2.7,198.93,198.85,2.84]
[1761517905110,4.5578085,198.93,198.85,2.84]
[1761517905299,4.5578085,198.95,198.85,2.84]
[1761517905497,7.32328721,198.95,198.85,2.84]
[1761517905704,7.32328721,198.95,198.86,2.84]
[1761517906599,7.32328721,198.95,198.8,3.46067591]
[1761517906600,7.32328721,198.95,198.87,2.84]
[1761517906809,4.62328721,198.94,198.87,2.84]
[1761517907002,7.32328721,198.95,198.87,2.84]
[1761517907201,7.32328721,198.95,198.88,7.365]
[1761517907506,4.62328721,198.94,198.88,7.365]
[1761517907712,2.7,198.95,198.88,7.365]
[1761517909311,7.32328721,198.95,198.88,7.365]
[1761517909507,4.62328721,198.94,198.88,7.365]
[1761517910006,4.63123055,199.06,198.93,2.84]
[1761517910206,2.7,199.04,198.93,2.84]
[1761517910404,2.7,199.03,198.93,2.84]
[1761517910605,7.31846236,199.03,198.93,2.84]
[1761517910804,4.61846236,199.02,198.93,2.84]
[1761517911010,2.7,199.02,198.94,4.5235]
[1761517911404,2.7,199.01,198.93,2.84]
[1761517912407,2.7,199.0,198.93,2.84]
[1761517912611,7.31846236,199.0,198.93,2.84]
[1761517912806,4.61846236,198.99,198.93,2.84]
[1761517913006,2.7,199.0,198.93,2.84]
[1761517913207,2.7,199.0,198.92,4.5239]
[1761517913404,2.7,199.0,198.89,7.3647]
[1761517913606,3.46067591,198.99,198.85,2.84]
[1761517913813,2.7,198.98,198.85,2.84]
[1761517914009,2.7,198.96,198.85,2.84]
[1761517914212,2.7,198.95,198.85,2.84]
[1761517916106,7.31960111,198.95,198.85,2.84]
[1761517916310,4.61960111,198.94,198.85,2.84]
[1761517916508,2.7,198.95,198.85,2.84]
[1761517919116,2.7,198.95,198.86,7.3655]
[1761517919815,2.7,198.95,198.87,2.84]
[1761517921720,2.7,198.95,198.83,7.366]
[1761517921918,2.7,198.94,198.84,2.84]
[1761517922118,2.7,198.93,198.84,2.84]
[1761517922320,2.7,198.93,198.85,2.84]
[1761517923821,2.62,198.92,198.85,2.84]
[1761517924027,2.62,198.92,198.82,7.2664]
[1761517924324,2.62,198.9,198.82,2.74]
[1761517924615,7.23960111,198.9,198.82,2.74]
[1761517924820,2.62,198.88,198.82,2.74]
[1761517925916,4.61960111,198.9,198.82,2.74]
[1761517926117,4.61960111,198.91,198.86,2.74]
[1761517926818,3.79328667,198.91,198.88,2.74]
[1761517927018,2.62,199.0,198.88,2.74]
[1761517928124,2.62,199.0,198.9,4.5244]
[1761517928516,2.62,198.99,198.88,2.74]
[1761517930925,2.62,198.99,198.82,4.57975565]
[1761517930926,2.62,198.99,198.91,2.8]
[1761517932227,2.79,198.98,198.91,2.8]
[1761517938128,2.79,198.98,198.9,4.5246]
[1761517938430,2.79,198.98,198.88,2.8]
[1761517938823,4.34488118,198.97,198.88,2.8]
[1761517939028,7.13488118,198.96,198.88,7.3249]
[1761517939223,4.34488118,198.95,198.88,4.5249]
[1761517939532,4.34488118,198.95,198.88,7.3249]
[1761517940323,7.13488118,198.95,198.88,7.3249]
[1761517940529,4.34488118,198.94,198.88,7.3249]
[1761517940726,2.79,198.95,198.88,2.8]
[1761517941224,7.13488118,198.95,198.89,2.8]
[1761517941426,4.34488118,198.94,198.89,2.8]
[1761517941627,4.34488118,198.97,198.89,2.8]
[1761517941827,4.34488118,198.96,198.89,2.8]
[1761517942129,4.34488118,198.95,198.89,2.8]
[1761517942323,7.13488118,198.97,198.89,2.8]
[1761517942532,7.13488118,198.96,198.89,2.8]
[1761517942727,4.34488118,198.95,198.89,2.8]
[1761517942930,4.34488118,198.97,198.93,2.8]
[1761517943228,4.34488118,198.98,198.93,2.8]
[1761517943447,4.34488118,199.02,198.93,2.8]
[1761517943729,4.34488118,199.03,198.94,2.8]
[1761517943928,2.79,199.04,198.94,2.8]
[1761517944430,4.34488118,199.06,198.98,7.3228]
[1761517944625,4.34488118,199.06,198.99,2.8]
[1761517944824,7.13488118,199.07,198.99,2.8]
[1761517945023,2.79,199.05,198.95,2.8]
[1761517945330,2.79,199.03,198.91,2.8]
[1761517945532,2.79,199.01,198.91,2.8]
[1761517945827,2.79,199.0,198.91,2.8]
[1761517946549,2.79,199.0,198.92,2.8]
[1761517947336,2.79,199.0,198.92,7.3239]
[1761517948036,2.79,198.99,198.92,4.5239]
[1761517948538,2.79,198.98,198.92,4.5239]
[1761517951637,7.13488118,198.98,198.92,4.5239]
[1761517951938,2.79,198.96,198.9,4.5246]
[1761517952529,2.79,198.96,198.86,7.3253]
[1761517952843,2.79,198.96,198.87,2.8]
[1761517953035,7.13488118,198.96,198.87,2.8]
[1761517953240,7.13488118,198.95,198.88,4.525]
[1761517953441,4.34488118,198.94,198.88,4.525]
[1761517954143,2.79,198.93,198.85,4.5257]
[1761517954347,2.79,198.92,198.83,2.8]
[1761517954643,2.79,198.92,198.84,4.5257]
[1761517954842,2.79,198.92,198.84,7.3257]
[1761517955048,4.34488118,198.94,198.84,7.3257]
[1761517955338,2.79,198.92,198.84,7.3257]
[1761517955637,7.13488118,198.92,198.84,7.3257]
[1761517955844,4.34488118,198.91,198.84,7.3257]
[1761517956144,2.79,198.92,198.84,7.3257]
[1761517957443,2.79,198.91,198.84,7.3257]
[1761517962747,2.66,198.9,198.84,7.3257]
[1761517963538,7.00488118,198.9,198.84,7.3257]
[1761517963739,2.66,198.88,198.84,4.5257]
[1761517963946,2.66,198.87,198.77,4.65998115]
[1761517964147,2.66,198.87,198.76,2.86]
[1761517964544,2.66,198.87,198.78,4.5271]
[1761517965251,2.66,198.86,198.76,7.3878]
[1761517965452,2.66,198.85,198.76,7.3878]
[1761517966637,4.34488118,198.86,198.78,2.86]
[1761517966638,4.29e-05,198.86,198.78,2.86]
[1761517966947,2.66,198.96,198.8,2.86]
[1761517967136,2.66,198.96,198.85,2.86]
[1761517967342,2.66,198.96,198.84,4.5258]
[1761517967647,2.66,198.94,198.84,4.5258]
[1761517967842,2.66,198.94,198.84,7.3858]
[1761517968149,2.66,198.94,198.85,2.86]
[1761517968550,2.66,198.94,198.84,4.5258]
[1761517969050,2.66,198.94,198.81,2.86]
[1761517969544,2.66,198.94,198.82,4.5264]
[1761517969750,2.66,198.94,198.83,2.86]
[1761517971942,2.66,198.94,198.84,7.3859]
[1761517972347,2.66,198.94,198.85,2.86]
[1761517973349,2.66,198.94,198.75,2.86]
[1761517973350,2.66,198.9,198.75,2.86]
[1761517973654,2.66,198.88,198.75,2.86]
[1761517974447,2.66,198.87,198.75,2.86]
[1761517974852,2.66,198.87,198.75,7.388]
[1761517977054,2.66,198.87,198.76,2.86]
[1761517978864,2.66,198.86,198.76,2.86]
[1761517981463,2.66,198.86,198.72,2.86]
[1761517982957,2.66,198.86,198.74,4.5282]
[1761517983157,2.66,198.86,198.74,7.3882]
[1761517983561,2.66,198.86,198.77,2.78]
[1761517985166,25.9,198.91,198.77,2.78]
[1761517985464,2.69,198.89,198.79,4.5269]
[1761517985766,2.69,198.89,198.77,2.78]
[1761517986659,2.69,198.89,198.7,2.78]
[1761517986860,2.69,198.88,198.7,2.78]
[1761517987058,2.69,198.88,198.77,4.5276]
[1761517987258,2.69,198.87,198.77,4.5276]
[1761517987558,2.69,198.86,198.7,2.78]
[1761517987757,2.69,198.85,198.73,2.78]
[1761517988762,2.69,198.85,198.72,4.5285]
[1761517989165,2.69,198.85,198.73,4.5283]
[1761517989365,2.69,198.85,198.73,7.2483]
[1761517991267,2.69,198.85,198.69,2.72]
[1761517991471,4.68315939,198.84,198.69,2.72]
[1761517991767,2.72,198.83,198.69,2.72]
[1761517991968,2.72,198.82,198.71,2.72]
[1761517992265,2.72,198.81,198.71,2.72]
[1761517992972,2.72,198.81,198.71,7.2488]
[1761517993769,2.72,198.81,198.71,2.72]
[1761517993975,5.85646899,198.82,198.69,4.5294]
[1761517993976,2.72,198.8,198.69,4.5294]
[1761517994373,2.72,198.78,198.69,4.5294]
[1761517994572,2.72,198.77,198.69,4.5294]
[1761517995073,2.72,198.77,198.67,7.2498]
[1761517996370,2.72,198.77,198.68,2.72]
[1761517996973,2.72,198.77,198.69,2.72]
[1761517997173,2.72,198.81,198.69,2.72]
[1761517997366,63.0034673,198.81,198.69,2.72]
[1761517997569,4.2034673,198.8,198.69,2.72]
[1761517998073,6.9234673,198.8,198.72,4.5287]
[1761517998274,2.72,198.79,198.71,2.72]
[1761517998473,2.72,198.79,198.63,2.72]
[1761517998679,2.72,198.79,198.67,7.2498]
[1761517999173,2.72,198.79,198.68,4.5294]
[1761517999682,2.72,198.79,198.68,7.2494]
[1761518000082,2.72,198.79,198.68,4.5294]
[1761518000386,2.72,198.79,198.69,7.2492]
[1761518000585,2.72,198.79,198.7,2.72]
[1761518000787,62.64,198.78,198.7,2.72]
[1761518000983,4.2034673,198.77,198.7,2.72]
[1761518001290,4.2034673,198.77,198.71,2.72]
[1761518002290,4.2034673,198.77,198.71,7.2487]
[1761518002989,4.2034673,198.77,198.71,2.72]
[1761518003592,2.72,198.76,198.66,2.72]
[1761518004193,2.72,198.76,198.67,4.5298]
[1761518005687,4.2034673,198.77,198.66,2.72]
[1761518005892,62.62,198.77,198.66,2.72]
[1761518006191,2.72,198.75,198.66,2.72]
[1761518008094,2.72,198.75,198.66,7.2496]
[1761518008293,2.72,198.75,198.67,2.72]
[1761518010890,4.2034673,198.76,198.68,2.72]
[1761518011190,32.1234673,198.78,198.68,2.72]
[1761518011395,4.2034673,198.77,198.7,2.72]
[1761518013395,2.72,198.79,198.7,2.72]
[1761518013396,4.2034673,198.78,198.7,2.72]
[1761518013595,33.7434673,198.78,198.7,2.72]
[1761518013895,4.2034673,198.77,198.7,2.72]
[1761518015494,4.2034673,198.77,198.71,4.5286]
[1761518015690,9.28048156,198.88,198.63,4.64965032]
[1761518015691,2.72,198.83,198.72,2.72]
[1761518015885,10.53962838,198.87,198.72,2.72]
[1761518015886,6.93011854,198.86,198.72,2.72]
[1761518016096,4.21011854,198.86,198.7,7.36965032]
[1761518016398,4.21011854,198.86,198.73,2.72]
[1761518016893,4.21011854,198.86,198.78,4.527]
[1761518016894,6.93011854,198.86,198.78,4.527]
[1761518017295,2.72,198.85,198.77,2.72]
[1761518018993,4.21011854,198.86,198.77,2.72]
[1761518019392,4.21011854,198.86,198.78,2.71]
[1761518019801,4.21011854,198.91,198.79,2.71]
[1761518020003,4.21011854,198.92,198.81,2.71]
[1761518020702,4.21011854,198.92,198.83,2.71]
[1761518020902,26.99011854,198.94,198.83,2.71]
[1761518021104,4.21011854,198.93,198.83,2.71]
[1761518022508,4.21011854,198.93,198.85,2.71]
[1761518022900,6.95011854,198.93,198.85,2.71]
[1761518023704,2.74,198.92,198.85,2.71]
[1761518023901,2.74,198.92,198.81,7.2364]
[1761518024103,2.74,198.92,198.82,2.71]
[1761518024702,2.74,198.92,198.83,7.236]
[1761518025300,4.21011854,198.93,198.86,2.71]
[1761518025509,4.21011854,198.95,198.86,2.71]
[1761518025702,6.95011854,198.95,198.86,2.71]
[1761518026106,2.74,198.93,198.82,4.5261]
[1761518026320,2.74,198.93,198.83,2.71]
[1761518026609,6.95011854,198.93,198.83,2.71]
[1761518026809,4.21011854,198.92,198.83,2.71]
[1761518027004,2.74,198.93,198.83,2.71]
[1761518029101,3.46293393,198.93,198.83,2.71]
[1761518029302,2.74,198.92,198.83,2.71]
[1761518029498,6.95011854,198.92,198.83,2.71]
[1761518029913,2.74,198.91,198.83,2.71]
[1761518032708,2.74,198.91,198.84,7.2357]
[1761518032914,2.74,198.91,198.85,2.71]
[1761518033504,4.21011854,198.94,198.87,2.71]
[1761518033706,2.74,198.95,198.87,2.71]
[1761518036614,4.15874727,198.96,198.79,3.46293393]
[1761518036819,2.74,199.03,198.89,2.71]
[1761518037222,2.74,199.03,198.95,4.5232]
[1761518037425,4.15254343,199.06,198.96,2.71]
[1761518037612,6.89254343,199.06,198.96,2.71]
[1761518037820,2.74,199.1,198.99,2.71]
[1761518038116,2.74,199.09,198.99,2.71]
[1761518038323,6.88924696,199.09,198.99,2.71]
[1761518038510,2.74,199.08,198.99,2.71]
[1761518039520,2.74,199.08,198.95,2.71]
[1761518039715,2.74,199.08,198.89,2.71]
[1761518039716,2.74,199.04,198.89,2.71]
[1761518039916,2.74,199.09,198.9,2.71]
[1761518040118,2.74,199.08,198.93,2.71]
[1761518040314,2.74,199.08,198.96,2.71]
[1761518041118,2.74,199.08,198.98,2.71]
[1761518041722,21.65445697,199.53,199.02,2.71]
[1761518041723,2.74,199.12,199.02,2.71]
[1761518042026,62.48,199.13,199.02,2.71]
[1761518042424,62.48,199.13,199.0,3.46293393]
[1761518042425,62.48,199.13,199.04,2.71]
[1761518042921,2.74,199.16,199.05,4.5209]
[1761518043123,5.2,199.19,199.06,2.71]
[1761518043329,2.74,199.2,199.06,2.71]
[1761518044027,2.74,199.2,199.06,4.5207]
[1761518044223,2.74,199.2,199.07,2.64]
[1761518044428,2.74,199.18,198.99,3.46293393]
[1761518044721,2.74,199.17,199.02,2.64]
[1761518044928,2.74,199.14,199.02,2.64]
[1761518045226,2.74,199.12,198.96,2.64]
[1761518046328,2.74,199.18,199.0,2.64]
[1761518046925,2.74,199.18,199.06,2.64]
[1761518047630,2.74,199.18,199.1,2.64]
[1761518048024,8.92,199.22,199.1,2.64]
[1761518048327,2.74,199.21,199.11,7.1596]
[1761518048623,63.31398757,199.27,199.12,2.64]
[1761518048846,2.8,199.26,199.14,2.69]
[1761518051231,2.8,199.26,199.11,2.69]
[1761518051532,2.8,199.26,199.13,2.69]
[1761518052329,2.8,199.26,199.15,2.69]
[1761518052924,2.8,199.26,199.17,2.69]
[1761518061218,62.38,199.25,199.17,2.69]
[1761518061823,65.18,199.25,199.17,2.69]
[1761518063620,2.8,199.33,199.17,2.69]
[1761518063822,2.8,199.37,199.2,2.69]
[1761518064025,65.16,199.36,199.2,2.69]
[1761518064227,65.16,199.36,199.25,2.69]
[1761518064429,62.36,199.36,199.25,2.69]
[1761518064829,65.16,199.36,199.26,2.69]
[1761518065130,2.8,199.35,199.26,2.69]
[1761518065336,62.36,199.35,199.27,2.69]
[1761518065827,2.8,199.4,199.27,2.69]
[1761518066025,65.16,199.4,199.29,2.69]
[1761518066425,2.8,199.4,199.29,2.69]
[1761518067025,205.23616488,199.43,199.29,2.69]
[1761518067026,62.36,199.39,199.29,2.69]
[1761518067228,2.8,199.44,199.27,3.46293393]
[1761518067430,2.8,199.44,199.28,2.69]
[1761518067819,2.8,199.44,199.29,2.69]
[1761518068634,2.8,199.41,199.29,2.69]
[1761518069423,2.8,199.41,199.22,4.517]
[1761518069629,2.8,199.41,199.23,2.69]
[1761518070029,2.8,199.41,199.24,4.5166]
[1761518070229,2.8,199.41,199.25,2.69]
[1761518071241,2.8,199.4,199.25,2.69]
[1761518071838,2.8,199.4,199.27,2.69]
[1761518072235,41.0,199.39,199.27,2.69]
[1761518072537,2.8,199.38,199.27,2.69]
[1761518084645,2.8,199.38,199.24,2.8]
[1761518084846,2.6,199.35,199.24,2.8]
[1761518085044,2.6,199.34,199.24,2.8]
[1761518085244,2.6,199.33,199.24,2.8]